[Event "Chinese League Div-A Rapid 2022"]
[Site "Fuling,Chongqing"]
[Date "2022.09.19"]
[Round "11.22"]
[White "Lin, Chen"]
[Black "Huang, Renjie"]
[Result "1/2-1/2"]
[ECO "B40"]
[WhiteElo "2485"]
[BlackElo "2446"]
[Annotator "TA"]
[PlyCount "69"]
[EventDate "2022.09.07"]
[EventType "team-tourn"]
[EventCountry "CHN"]
[SourceTitle "playchess.com"]
[Source "ChessBase"]
[SourceQuality "1"]
[TimeControl "1500+10"]

{[%evp 9,69,4,26,23,23,8,5,4,8,2,17,15,10,4,35,18,52,34,35,40,32,39,51,58,54,20,18,25,18,0,0,0,0,0,0,0,0,0,0,0,0,0,0,0,25,0,7,0,37,36,36,36,39,36,36,36,41,37,56,12,10,7]} 1. e4 {[%emt 0:00:03]} c5 {[%emt 0:00:01]} 2. Nf3 {[%emt 0:00:02]} e6 {[%emt 0:00:01]} 3. g3 {[%emt 0:00:03]} Nc6 {[%emt 0:00:04]} 4. Bg2 {[%emt 0:00:02]} Nf6 {[%emt 0:00:02]} 5. Nc3 {[%emt 0:00:01]} e5 {[%emt 0:00:08] CPLX 2.0 22 (Bf8-e7) (=22)} 6. d3 {[%emt 0:00:14] CPLX 2.0. B40: Sicilian: 2...e6, Unusual lines.} d6 {[%emt 0:00:13] CPLX 2.0 0 (Bf8-e7) (=11)} 7. Bg5 {[%emt 0:00:11] CPLX 2.0 15 (Nc3-d5) (=8)} Be7 {[%emt 0:00:02] BESTDEEP} 8. O-O {[%emt 0:00:43] CPLX 2.2 1 (Nf3-d2) (=5)} O-O {[%emt 0:00:04] CPLX 2.2 4 (Bc8-g4) (=7)} 9. Nd2 {[%emt 0:00:47] [#] CPLX 2.3 6 (a2-a4) (=6)} h6 $146 {[%emt 0:00:30] CPLX 2.3 15 (Bc8-g4) (=8)} ({Predecessor:} 9... Be6 10. Bxf6 Bxf6 11. Nc4 g6 12. a4 Rb8 13. Kh1 Bg7 14. Nd5 Bxd5 15. exd5 Ne7 {1-0 (66) Bernabeu Lopez,C (2308)-Domingo Nunez,R (2270) Roquetas de Mar 2017}) 10. Bxf6 {[%emt 0:00:03] EASY} Bxf6 {[%emt 0:00:01] RECAPT} 11. Nc4 {[%emt 0:00:14] CPLX 2.1 6 (Nc3-d5) (=5)} Be6 {[%emt 0:00:35] CPLX 2.2 31 (g7-g6) (=10)} 12. a4 {[%emt 0:00:16] CPLX 2.3 17 (Nc3-d5) (=6)} a6 {[%emt 0:00:43] CPLX 2.3 34 (g7-g6) (=13)} 13. Nd5 {[%emt 0:00:46] EASY} Bxd5 {[%emt 0:01:35] CPLX 2.6} 14. exd5 {[%emt 0:00:02] RECAPT} Na5 {[%emt 0:00:29] BESTDEEP} 15. Nd2 {[%emt 0:00:05] CPLX 2.2} b5 {[%emt 0:00:19] CPLX 2.0 12 (b7-b6) (=11)} 16. axb5 {[%emt 0:00:17] CPLX 2.0} axb5 {[%emt 0:00:01] RECAPT} 17. c3 {[%emt 0:00:02] CPLX 2.0 34 (h2-h4) (=7)} c4 {[%emt 0:01:15] CPLX 2.0} 18. dxc4 {[%emt 0:04:34] CPLX 2.5} Nxc4 {[%emt 0:00:06] RECAPT} 19. Qc2 {[%emt 0:00:07] CPLX 2.6 18 (Nd2xc4) (=7)} Nxd2 {[%emt 0:00:47] CPLX 2.8} 20. Qxd2 {[%emt 0:00:01] RECAPT} Qb6 {[%emt 0:00:03] CPLX 2.2} 21. h4 {[%emt 0:00:53] CPLX 2.3 0 (Bg2-e4) (=6)} Rfb8 {[%emt 0:00:27] CPLX 2.4 0 (h6-h5) (=7)} 22. Be4 {[%emt 0:00:30] CPLX 2.3 0 (Bg2-f3) (=6)} h5 {[%emt 0:00:52] BESTDEEP} 23. Qe3 {[%emt 0:03:03] CPLX 2.6} Qxe3 {[%emt 0:01:26] CPLX 2.6} 24. fxe3 {[%emt 0:00:02] RECAPT} Bd8 {[%emt 0:00:03] CPLX 2.2 0 (Ra8xa1) (=6)} 25. Bd3 {[%emt 0:00:18] CPLX 2.2 0 (Kg1-f2) (=5)} Rxa1 {[%emt 0:06:39] BESTDEEP} 26. Rxa1 $11 {[%emt 0:00:02][%mdl 4096] Endgame KRB-KRB. RECAPT} g6 {[%emt 0:00:38] CPLX 2.0 25 (b5-b4) (=7)} 27. e4 {[%emt 0:03:09] CPLX 2.0 25 (Kg1-f2) (=6)} b4 {[%emt 0:01:03] CPLX 2.0} 28. cxb4 {[%emt 0:00:20] BESTDEEP} Kf8 {[%emt 0:00:16] CPLX 2.0 37 (Bd8-b6) (=8)} 29. b5 {[%emt 0:00:14] BESTDEEP} Bb6+ {[%emt 0:00:01] CPLX 2.0} 30. Kg2 {[%emt 0:01:07] CPLX 2.0} Bd4 {[%emt 0:00:43] CPLX 2.0} 31. Ra6 {[%emt 0:00:19] CPLX 2.0 3 (Ra1-a2) (=5)} Ke7 {[%emt 0:00:02] EASY} 32. b3 {[%emt 0:00:13] CPLX 2.1} Bb6 {[%emt 0:00:30] BESTDEEP} 33. Kf3 {[%emt 0:00:29] CPLX 2.2 4 (Bd3-e2) (=5)} Kd7 {[%emt 0:00:05] BESTDEEP} 34. Ra2 {[%emt 0:00:22] CPLX 2.4 44 (g3-g4) (=6)} Rc8 {[%emt 0:00:05] BESTDEEP} 35. Rc2 {[%emt 0:01:25] Weighted Error Value: White=0.07 (flawless) /Black=0.06 (flawless)} 1/2-1/2

[Event "Chinese League Div-A Rapid 2022"]
[Site "Fuling,Chongqing"]
[Date "2022.09.19"]
[Round "11.23"]
[White "Chen, Qi b"]
[Black "Zhao, Jun"]
[Result "1/2-1/2"]
[ECO "C47"]
[WhiteElo "2485"]
[BlackElo "2619"]
[Annotator "TA"]
[PlyCount "45"]
[EventDate "2022.09.07"]
[EventType "team-tourn"]
[EventCountry "CHN"]
[SourceTitle "playchess.com"]
[Source "ChessBase"]
[SourceQuality "1"]
[TimeControl "1500+10"]

{[%evp 10,45,35,35,40,35,35,39,65,46,41,41,49,41,54,54,55,30,44,18,31,0,0,0,0,0,0,0,0,0,0,0,0,0,0,0,0,0]} 1. e4 {[%emt 0:00:00]} e5 {[%emt 0:00:00]} 2. Nf3 {[%emt 0:00:00]} Nc6 {[%emt 0:00:00]} 3. Nc3 {[%emt 0:00:00]} Nf6 {[%emt 0:00:00]} 4. d4 {[%emt 0:00:00]} Bb4 {[%emt 0:00:00]} 5. Nxe5 {[%emt 0:00:00]} Qe7 {[%emt 0:00:00]} 6. Qd3 {[%emt 0:00:00]} Bxc3+ {[%emt 0:00:00] C47: Scotch Four Knights and Four Knights with 4 g3.} 7. Qxc3 {[%emt 0:00:00] Black must now prevent Bd3.} ({But not} 7. bxc3 Nxe5 8. dxe5 Qxe5 $15) 7... Nxe4 {[%emt 0:00:00]} 8. Qe3 {[%emt 0:00:00]} Nf6 {[%emt 0:00:00] White is slightly better.} 9. Nxc6 {[%emt 0:00:00][%csl Gc6][%cal Re3e7] [#] White is more active.} Qxe3+ $146 {[%emt 0:00:00]} ({Predecessor:} 9... dxc6 10. Qxe7+ Kxe7 11. Bf4 Bf5 12. c4 Rhe8 13. f3 Kf8+ 14. Kf2 Rac8 15. g4 Be6 {1-0 (65) Aravindh,C (2606)-Ghosh,D (2538) chess24.com INT 2022}) 10. Bxe3 {[%emt 0:00:00] Threatens to win with Na5.} dxc6 {[%emt 0:00:00]} 11. f3 {[%emt 0:00:00]} Nd5 {[%emt 0:00:00]} 12. Bf2 {[%emt 0:00:00]} Bf5 {[%emt 0:00:00]} 13. O-O-O {[%emt 0:00:00]} O-O-O {[%emt 0:00:00]} 14. Bc4 {[%emt 0:00:00]} Rhe8 {[%emt 0:00:00]} 15. Bxd5 {[%emt 0:00:00]} cxd5 {[%emt 0:00:00] The position is equal.} 16. Rhe1 {[%emt 0:00:00]} Kd7 {[%emt 0:00:00]} 17. Rxe8 {[%emt 0:00:00]} Rxe8 {[%emt 0:00:00]} 18. Re1 {[%emt 0:00:00]} Rxe1+ {[%emt 0:00:00]} 19. Bxe1 $11 {[%emt 0:00:00] KB-KB} c6 {[%emt 0:00:00]} 20. c3 {[%emt 0:00:00]} Bg6 {[%emt 0:00:00]} 21. Bf2 {[%emt 0:00:00]} Bf5 {[%emt 0:00:00]} 22. Be1 {[%emt 0:00:00]} Bg6 {[%emt 0:00:00]} 23. Bf2 {[%emt 0:00:00] Weighted Error Value: White=0.08 (flawless) /Black=0.05 (flawless)} 1/2-1/2

[Event "Chinese League Div-A Rapid 2022"]
[Site "Fuling,Chongqing"]
[Date "2022.09.19"]
[Round "11.24"]
[White "Liu, Manli"]
[Black "Yuan, Ye"]
[Result "1/2-1/2"]
[ECO "C42"]
[WhiteElo "2195"]
[BlackElo "2108"]
[Annotator "NA RC"]
[PlyCount "44"]
[EventDate "2022.09.07"]
[EventType "team-tourn"]
[EventCountry "CHN"]
[SourceTitle "playchess.com"]
[Source "ChessBase"]
[SourceQuality "1"]
[TimeControl "1500+10"]

1. e4 {[%emt 0:00:02]} e5 {[%emt 0:00:00]} 2. Nf3 {[%emt 0:00:03]} Nf6 {[%emt 0:00:01]} 3. Nxe5 {[%emt 0:00:06]} d6 {[%emt 0:00:01]} 4. Nf3 {[%emt 0:00:03]} Nxe4 {[%emt 0:00:02]} 5. d4 {[%emt 0:00:05]} d5 {[%emt 0:00:01]} 6. Bd3 {[%emt 0:00:15]} Be7 {[%emt 0:00:03]} 7. O-O {[%emt 0:00:21]} Nc6 {[%emt 0:00:01]} 8. Nbd2 {[%emt 0:01:08]} Nxd2 {[%emt 0:05:57]} 9. Qxd2 {[%emt 0:00:06]} Nb4 {[%emt 0:01:05]} 10. Be2 {[%emt 0:03:57]} Bf5 {[%emt 0:00:27]} 11. Ne1 {[%emt 0:01:02]} O-O {[%emt 0:00:45]} 12. c3 {[%emt 0:00:10]} Nc6 {[%emt 0:00:16]} 13. Nd3 {[%emt 0:00:30]} Bd6 {[%emt 0:00:51]} 14. Bf3 {[%emt 0:01:21]} Be4 {[%emt 0:02:23]} 15. Bxe4 {[%emt 0:01:57]} dxe4 {[%emt 0:00:01]} 16. Nc5 {[%emt 0:01:01]} Bxc5 {[%emt 0:01:32]} 17. dxc5 {[%emt 0:00:02]} Qe7 {[%emt 0:00:21]} 18. Qf4 {[%emt 0:01:59]} Qxc5 {[%emt 0:00:35]} 19. Qxe4 {[%emt 0:00:31]} Rfe8 {[%emt 0:00:03]} 20. Qc2 {[%emt 0:00:36]} Nd4 {[%emt 0:00:47]} 21. Qd3 {[%emt 0:01:16]} Ne2+ {[%emt 0:00:04]} 22. Kh1 {[%emt 0:00:01]} Nxc1 {[%emt 0:01:06]} 1/2-1/2

[Event "Chinese League Div-A Rapid 2022"]
[Site "Fuling,Chongqing"]
[Date "2022.09.19"]
[Round "11.25"]
[White "Gu, Xiaobing"]
[Black "Guo, Qi"]
[Result "1/2-1/2"]
[ECO "C01"]
[WhiteElo "2219"]
[BlackElo "2406"]
[Annotator "TA"]
[PlyCount "61"]
[EventDate "2022.09.07"]
[EventType "team-tourn"]
[EventCountry "CHN"]
[SourceTitle "playchess.com"]
[Source "ChessBase"]
[SourceQuality "1"]
[TimeControl "1500+10"]

{[%evp 14,61,14,14,14,12,19,12,17,11,47,43,35,42,93,88,85,60,59,52,66,64,68,72,76,59,63,47,78,79,81,81,80,85,82,51,54,50,52,45,46,45,45,30,34,34,27,23,53,57]} 1. e4 {[%emt 0:00:01]} e6 {[%emt 0:00:01]} 2. d4 {[%emt 0:00:08]} d5 {[%emt 0:00:02]} 3. exd5 {[%emt 0:00:34]} exd5 {[%emt 0:00:02]} 4. Nf3 {[%emt 0:00:01]} Nf6 {[%emt 0:00:02]} 5. Bd3 {[%emt 0:00:02]} Bd6 {[%emt 0:00:02]} 6. O-O {[%emt 0:00:03]} O-O {[%emt 0:00:02]} 7. h3 {[%emt 0:00:01]} h6 {[%emt 0:00:07]} 8. Nc3 {[%emt 0:00:02] CPLX 2.3} Re8 {[%emt 0:01:13] C01: French: Exchange Variation.} 9. Nb5 {[%emt 0:00:24] BESTDEEP} Nc6 {[%emt 0:00:22] CPLX 2.7 7 (Nf6-e4) (=4)} (9... Ne4 {feels hotter.} 10. Re1 Bf5 11. c3 Nc6) 10. Nxd6 {[%emt 0:00:16] CPLX 2.7 7 (c2-c3) (=2)} Qxd6 {[%emt 0:00:02] RECAPT. The position is equal.} 11. c3 {[%emt 0:04:08] [#] CPLX 2.4} Bd7 $146 {[%emt 0:02:23] CPLX 2.4 36 (Nf6-e4) (=11)} ({Predecessor:} 11... Ne4 12. c4 Nb4 13. Be2 dxc4 14. Bxc4 Be6 15. Bb3 Rad8 {½-½ (29) Mann,K (2008)-Giesen,D (2190) Hamburg 2018}) 12. Ne5 {[%emt 0:00:44] BESTDEEP} Nxe5 {[%emt 0:03:45] EASY} 13. Bf4 {[%emt 0:00:06][%mdl 64] [#] Pin. EASY} Qb6 {[%emt 0:00:01] CPLX 3.4 51 (Nf6-e4) (=16)} 14. dxe5 $16 {[%emt 0:02:07] EASY} Nh7 {[%emt 0:00:10] BESTDEEP} 15. Bxh7+ {[%emt 0:00:11] CPLX 3.1 25 (Bd3-c2) (=4)} Kxh7 {[%emt 0:00:01] RECAPT} 16. Qxd5 {[%emt 0:00:02] CPLX 3.7} Be6 {[%emt 0:00:04] CPLX 4.1 14 (Re8-e7) (=12)} 17. Qe4+ {[%emt 0:00:50] CPLX 4.2} Kh8 {[%emt 0:00:02] CPLX 2.7 4 (Kh7-g8) (=11)} 18. b3 {[%emt 0:00:31] CPLX 2.8} Rad8 {[%emt 0:00:22] CPLX 2.7} 19. Rfd1 {[%emt 0:00:23] CPLX 2.9 17 (Bf4-e3) (=4)} a5 {[%emt 0:01:19] BESTDEEP} 20. Rab1 {[%emt 0:02:17] CPLX 3.3 16 (Bf4-e3) (=5)} Qc6 {[%emt 0:00:14] CPLX 3.3 31 (Qb6-c5) (=11)} 21. Qxc6 {[%emt 0:01:21] EASY} bxc6 {[%emt 0:00:01] RECAPT} 22. Rd4 {[%emt 0:04:07] BESTDEEP} Rxd4 {[%emt 0:00:18] CPLX 2.2 0 (g7-g5) (=10)} 23. cxd4 {[%emt 0:00:01][%mdl 4096] Endgame KRB-KRB. RECAPT} Ra8 {[%emt 0:00:01] CPLX 2.0 0 (Re8-b8) (=9)} 24. Rc1 {[%emt 0:01:23] CPLX 2.0 31 (a2-a3) (=6)} Bd5 {[%emt 0:00:02] BESTDEEP} 25. Rc2 {[%emt 0:00:21] CPLX 2.0 4 (a2-a3) (=6)} a4 {[%emt 0:00:45] CPLX 2.0} 26. b4 {[%emt 0:00:06] BESTDEEP} a3 {[%emt 0:00:01] CPLX 2.0} 27. Bc1 {[%emt 0:02:17] BESTDEEP} Ra4 {[%emt 0:00:26] CPLX 2.0} 28. Rd2 {[%emt 0:01:13] CPLX 2.0 15 (Bc1-d2) (=5)} Rxb4 {[%emt 0:01:28] [#] And now ...Rb1 would win. CPLX 2.0 4 (Kh8-h7) (=7)} 29. Bxa3 {[%emt 0:00:02] EASY} Ra4 {[%emt 0:00:03] CPLX 2.0} 30. Bc5 {[%emt 0:00:03] CPLX 2.1 4 (Ba3-e7) (=5)} Rxa2 {[%emt 0:00:22] CPLX 2.0 30 (Bd5xa2) (=8)} 31. Rxa2 {[%emt 0:00:03] Weighted Error Value: White=0.06 (flawless) /Black=0.10 (very precise)} 1/2-1/2

[Event "Chinese League Div-A Rapid 2022"]
[Site "Fuling,Chongqing"]
[Date "2022.09.19"]
[Round "11.26"]
[White "Lu, Shanglei"]
[Black "Li, Di"]
[Result "1/2-1/2"]
[ECO "B20"]
[WhiteElo "2616"]
[BlackElo "2575"]
[Annotator "TA"]
[PlyCount "102"]
[EventDate "2022.09.07"]
[EventType "team-tourn"]
[EventCountry "CHN"]
[SourceTitle "playchess.com"]
[Source "ChessBase"]
[SourceQuality "1"]
[TimeControl "1500+10"]

{[%evp 9,102,-25,-22,-17,-17,-23,-29,-25,-24,-35,7,0,7,-13,0,0,0,0,14,-30,-10,-37,21,-17,-6,-16,35,-44,-49,-56,-36,-181,-157,-334,-308,-497,-495,-502,-483,-455,-408,-575,-537,-610,-609,-554,-84,-189,-191,-179,0,0,0,0,0,0,0,0,-4,-8,0,0,0,0,0,0,0,0,0,0,0,0,0,0,0,0,0,0,0,0,9,9,9,0,9,9,9,9,9,9,9,0,0,0,0]} 1. c4 {[%emt 0:00:14]} c5 {[%emt 0:00:08]} 2. e4 {[%emt 0:00:25]} Nc6 {[%emt 0:00:14]} 3. Nc3 {[%emt 0:00:11]} g6 {[%emt 0:00:07]} 4. f4 {[%emt 0:00:29]} Bg7 {[%emt 0:00:03]} 5. Nf3 {[%emt 0:00:02]} e6 {[%emt 0:01:22]} 6. d3 {[%emt 0:00:43] B20: Sicilian: Unusual White 2nd moves.} Nge7 {[%emt 0:00:27]} 7. g3 {[%emt 0:01:05]} O-O {[%emt 0:01:52]} 8. Bg2 {[%emt 0:00:25] Black has an edge.} d5 {[%emt 0:03:05]} 9. e5 {[%emt 0:00:39]} a6 {[%emt 0:02:26]} 10. O-O {[%emt 0:01:23] [#]} b5 $146 {[%emt 0:01:17]} ({Predecessor:} 10... b6 11. g4 Ra7 12. Qe2 Rd7 13. Bd2 Bb7 14. Be1 Nd4 15. Nxd4 {½-½ (15) Ruckschloss,K (2273)-Pacher,M (2201) Slovakia 2005}) 11. Qe2 {[%emt 0:02:48]} Rb8 {[%emt 0:05:06]} 12. Qf2 {[%emt 0:01:18]} Qb6 {[%emt 0:03:11]} 13. b3 {[%emt 0:04:40]} f6 {[%emt 0:00:27][%cal Rf6e5]} 14. exf6 {[%emt 0:06:05]} (14. Ba3 $5 {[%cal Ra3c5]}) 14... Bxf6 {[%emt 0:00:01]} 15. Bb2 {[%emt 0:00:01]} Bg7 {[%emt 0:00:04]} ({Black should play} 15... Nd4 $15) 16. Kh1 {[%emt 0:00:34]} d4 {[%emt 0:00:11]} 17. Ne4 {[%emt 0:00:18]} e5 {[%emt 0:00:06]} (17... bxc4 $11 18. Ba3 (18. dxc4 Nb4 $15) 18... Nb4 19. Bxb4 cxb4 20. bxc4 Nf5) 18. Rae1 {[%emt 0:04:42]} (18. Ba3 $14) 18... exf4 $15 {[%emt 0:00:59]} 19. gxf4 {[%emt 0:00:01]} Nf5 {[%emt 0:00:14] Inhibits Nd6. ...Nb4 is the strong threat.} (19... Rxf4 20. Qg3 Rf8 21. Qd6 $11) (19... bxc4 $5 {[%cal Rc4c3]} 20. Ba3 Nb4 21. Bxb4 cxb4 $11) 20. Nh4 {[%emt 0:00:43]} ({White should try} 20. Bc1 $15) 20... Ne3 {[%emt 0:01:37]} 21. Ng5 $2 {[%emt 0:00:01]} (21. Ba3 $17 b4 22. Bc1 Nxf1 23. Qxf1) 21... Nb4 $19 {[%emt 0:00:23]} (21... Nxf1 $2 22. Bd5+ Be6 23. Bxe6+ Rf7 24. Bxf7+ $18) 22. Be4 {[%emt 0:00:50]} (22. Qg3 Nxf1 23. Rxf1) 22... Bb7 {[%emt 0:00:12]} 23. Qf3 {[%emt 0:00:12]} Bxe4 {[%emt 0:00:08]} 24. dxe4 {[%emt 0:00:04]} Nbc2 {[%emt 0:01:01]} 25. Qh3 {[%emt 0:00:20]} (25. cxb5 {is a better defense.} Nxe1 26. Rxe1) 25... Nxe1 {[%emt 0:00:36]} 26. Rxe1 {[%emt 0:00:21]} Rxf4 {[%emt 0:00:59]} 27. Rxe3 {[%emt 0:00:01]} Qf6 $2 {[%emt 0:00:43]} (27... h6 $19 {is more deadly.} 28. Nhf3 hxg5 29. Nxg5 Qf6 30. Qh7+ Kf8) 28. Nhf3 {[%emt 0:00:22]} (28. Rf3 $17 {might work better.} Qxg5 29. Bc1 Qxh4 30. Qe6+ Kh8 31. Bxf4) 28... h6 {[%emt 0:00:32]} 29. Ne6 {[%emt 0:00:01] [#]} bxc4 $1 {[%emt 0:00:33]} 30. Nxf4 $11 {[%emt 0:00:05] The position is equal.} Qxf4 {[%emt 0:00:02]} 31. Re1 {[%emt 0:00:02]} ({But not} 31. Qe6+ $2 Kh8 32. Re2 c3 $19) 31... Rf8 {[%emt 0:00:03]} 32. Kg2 {[%emt 0:00:06]} c3 {[%emt 0:00:57]} 33. Bc1 {[%emt 0:00:01]} Qf7 {[%emt 0:00:00]} 34. e5 {[%emt 0:00:34]} d3 {[%emt 0:00:25]} 35. e6 {[%emt 0:00:04]} Qe7 {[%emt 0:00:01] White must now prevent ...d2.} 36. Bxh6 {[%emt 0:00:20]} d2 {[%emt 0:00:16]} 37. Nxd2 {[%emt 0:00:22]} cxd2 {[%emt 0:00:42]} 38. Bxd2 {[%emt 0:00:02] And now Qg4 would win. The board is on fire.} Bd4 {[%emt 0:00:05] ( -> ...Qb7+)} 39. Be3 {[%emt 0:00:25]} Qb7+ {[%emt 0:00:03]} 40. Kg1 $1 {[%emt 0:00:01] aiming for Bxd4.} Rf3 {[%emt 0:00:27]} 41. Bxd4 {[%emt 0:00:01][%csl Gd4][%cal Rh3h8]} Rxh3 {[%emt 0:00:35]} 42. e7 {[%emt 0:00:01]} Qxe7 {[%emt 0:00:02]} 43. Rxe7 {[%emt 0:00:03]} cxd4 {[%emt 0:00:01][%mdl 4096] Endgame KR-KR} 44. Re6 {[%emt 0:00:03]} Kf7 {[%emt 0:00:34]} 45. Rxa6 {[%emt 0:00:13]} Rc3 {[%emt 0:00:10]} 46. Kf2 {[%emt 0:00:01]} Rc2+ {[%emt 0:00:05]} 47. Kf3 {[%emt 0:00:03]} Rxh2 {[%emt 0:00:02]} 48. Ke4 {[%emt 0:00:01]} Rd2 {[%emt 0:00:04]} 49. a4 {[%emt 0:00:09]} g5 {[%emt 0:00:13]} 50. Rd6 {[%emt 0:01:35]} Rb2 $1 {[%emt 0:00:09]} 51. Rxd4 {[%emt 0:00:14] Strongly threatening b4.} Rxb3 {[%emt 0:00:02] White happily takes the draw.  Weighted Error Value: White=0.30/Black=0.24 (precise)} 1/2-1/2

[Event "Chinese League Div-A Rapid 2022"]
[Site "Fuling,Chongqing"]
[Date "2022.09.19"]
[Round "11.27"]
[White "Xu, Minghui"]
[Black "Xu, Xiangyu"]
[Result "0-1"]
[ECO "A04"]
[WhiteElo "2408"]
[BlackElo "2571"]
[Annotator "TA"]
[PlyCount "120"]
[EventDate "2022.09.07"]
[EventType "team-tourn"]
[EventCountry "CHN"]
[SourceTitle "playchess.com"]
[Source "ChessBase"]
[SourceQuality "1"]
[TimeControl "1500+10"]

{[%evp 9,120,-6,4,13,20,0,33,31,73,29,34,33,25,32,54,52,56,36,93,64,62,41,45,-21,-21,-22,33,39,47,13,19,17,19,16,22,0,0,0,0,0,0,0,0,0,0,-27,-29,-26,-27,-93,-94,-184,-177,-185,-186,-176,-200,-235,-230,-222,-234,-234,-233,-227,-208,-196,-196,-201,-176,-194,-177,-179,-190,-183,-183,-176,-31,-196,-189,-324,-329,-346,-338,-342,-323,-279,-243,-210,-185,-193,-193,-260,-260,-300,-292,-413,-283,-456,-438,-703,-699,-1265,-1160,-978,-631,-631,-151,-151,-151,-619,-200,-1505,-1291]} 1. Nf3 {[%emt 0:00:05]} g6 {[%emt 0:00:10]} 2. g3 {[%emt 0:00:39]} Bg7 {[%emt 0:00:03]} 3. Bg2 {[%emt 0:00:04]} e5 {[%emt 0:00:05]} 4. O-O {[%emt 0:00:20]} Ne7 {[%emt 0:00:17]} 5. c4 {[%emt 0:00:33]} c6 {[%emt 0:00:46]} 6. e4 {[%emt 0:00:17] A04: Unusual lines after 1 Nf3 and King's Indian Attack.} O-O {[%emt 0:00:09]} 7. Nc3 {[%emt 0:00:19]} d6 {[%emt 0:00:24]} 8. d4 {[%emt 0:00:29] White is slightly better.} h6 {[%emt 0:00:25] [#]} 9. Re1 $146 {[%emt 0:04:20]} ({Predecessor:} 9. Be3 g5 10. Qd2 f5 11. exf5 Nxf5 12. dxe5 dxe5 13. Qxd8 Rxd8 {½-½ (13) Dragasevic,D (2229)-Savic,B (1932) Kragujevac 2016}) 9... Bg4 {[%emt 0:01:30]} 10. Be3 {[%emt 0:00:29]} Nd7 {[%emt 0:00:17]} 11. d5 {[%emt 0:02:18]} c5 {[%emt 0:00:42]} 12. Qd2 {[%emt 0:01:48]} Kh7 {[%emt 0:00:52]} 13. Nh4 {[%emt 0:00:55]} Ng8 {[%emt 0:05:11]} ({Black should play} 13... f5 $14) 14. Rf1 {[%emt 0:03:39]} Bf6 {[%emt 0:03:11]} 15. f3 {[%emt 0:01:22]} Bh5 {[%emt 0:00:16]} 16. Nf5 {[%emt 0:04:20]} gxf5 $11 {[%emt 0:04:26]} 17. exf5 {[%emt 0:00:04]} e4 {[%emt 0:00:52]} (17... Bg5 $11) 18. Nxe4 $14 {[%emt 0:01:09]} Re8 {[%emt 0:00:07]} 19. Nxf6+ {[%emt 0:01:09]} (19. Nxd6 $2 Rxe3 $1 {[%mdl 512]} 20. Kh1 (20. Qxe3 $2 Bd4 $19) 20... Qe7 $19) 19... Qxf6 {[%emt 0:00:43]} 20. g4 {[%emt 0:00:02]} Ne5 {[%emt 0:01:31]} 21. b3 {[%emt 0:00:09]} (21. gxh5 $2 Nxc4 22. Qc3 Nxe3 $19) 21... Ne7 {[%emt 0:00:48][%cal Oe7f5]} 22. Rae1 {[%emt 0:02:36]} Nxf5 {[%emt 0:01:04]} 23. gxf5 {[%emt 0:00:07]} Rg8 {[%emt 0:00:14] aiming for ...Nxf3+.} 24. Kh1 {[%emt 0:00:08]} Qxf5 {[%emt 0:00:03][%cal Re5f3]} 25. Bf4 {[%emt 0:00:51] Bxe5 is the strong threat.} ({Reject} 25. Bxh6 Rxg2 26. Qxg2 Rg8 $17) 25... Nd3 $36 {[%emt 0:01:36][%mdl 2048] Black is pushing.} 26. Re4 {[%emt 0:00:20]} Nxf4 {[%emt 0:00:19]} 27. Qxf4 {[%emt 0:00:18]} Qxf4 {[%emt 0:00:11]} ({But not} 27... Qg6 28. Bh3 Qg5 29. Qxg5 hxg5 30. Re7 $14) 28. Rxf4 {[%emt 0:00:02]} Bg6 {[%emt 0:00:11]} 29. Kg1 {[%emt 0:00:30]} (29. Rg1 $11 {keeps the balance.}) 29... Rae8 $17 {[%emt 0:00:21]} 30. Rf6 {[%emt 0:00:33]} (30. Rf2 $17 {is a better defense.}) 30... Bd3 $19 {[%emt 0:02:09] Strongly threatening ...Re2.} 31. Rd1 {[%emt 0:00:02]} Re2 $1 {[%emt 0:00:05][%csl LRa2,LRg2]} 32. Rxf7+ {[%emt 0:00:15]} Kh8 {[%emt 0:00:06]} 33. Rxd3 {[%emt 0:00:09][%cal Og1f1]} Rgxg2+ {[%emt 0:00:02][%mdl 4096] Endgame KRR-KRR} 34. Kf1 {[%emt 0:00:01][%cal Od3e3]} Ref2+ {[%emt 0:00:05]} 35. Ke1 {[%emt 0:00:02]} Rxa2 {[%emt 0:00:05][%cal Rg2g1]} 36. Kf1 {[%emt 0:00:08] Inhibits Rg1+.} Rxh2 {[%emt 0:00:10][%cal Rh2h1]} 37. Kg1 {[%emt 0:00:18] Inhibits Rh1+.} Rag2+ {[%emt 0:00:29]} 38. Kf1 {[%emt 0:00:01]} Rb2 {[%emt 0:00:08][%cal Rh2h1]} 39. Kg1 {[%emt 0:00:09] Against Rh1+} Rhc2 {[%emt 0:00:08] ( -> ...Rb1+)} 40. Rd1 {[%emt 0:00:18] Prevents Rb1.} Rg2+ {[%emt 0:00:04]} 41. Kh1 {[%emt 0:00:11]} Rh2+ $1 {[%emt 0:00:02]} 42. Kg1 {[%emt 0:00:03]} Rbg2+ {[%emt 0:00:19]} 43. Kf1 {[%emt 0:00:01]} Rg7 $1 {[%emt 0:00:06]} 44. Rxg7 {[%emt 0:00:42]} (44. Rf8+ $142 Rg8 45. Rxg8+ Kxg8 46. Rd3) 44... Kxg7 {[%emt 0:00:02] KR-KR} 45. Kg1 {[%emt 0:00:13] Against Rh1+} Re2 {[%emt 0:00:12]} 46. Rd3 {[%emt 0:00:10]} Kf6 {[%emt 0:00:14]} 47. Kf1 {[%emt 0:00:04]} Re7 {[%emt 0:00:16]} 48. Kf2 {[%emt 0:00:05]} Kf5 {[%emt 0:00:36] Threatens to win with ...Kf4.} 49. Rd1 {[%emt 0:00:14] [#]} b5 $1 {[%emt 0:00:21] And now ...bxc4 would win.} 50. cxb5 {[%emt 0:00:14]} (50. Rh1 {was called for.}) 50... Rb7 {[%emt 0:00:10]} 51. Ra1 {[%emt 0:00:14]} Ke5 {[%emt 0:00:10]} ({Don't go for} 51... Rxb5 $2 52. Rxa7 Rxb3 53. Re7 $19) 52. Ke2 {[%emt 0:00:10]} (52. Re1+ {was necessary.} Kxd5 53. Re3) 52... Kxd5 {[%emt 0:00:09]} 53. Ra5 $2 {[%emt 0:00:07]} (53. Kd3) 53... h5 {[%emt 0:00:07][%cal Bh6h5,Bh5h4][%mdl 32]} 54. Kd3 {[%emt 0:00:06]} (54. f4 $142 h4 55. Kf3) 54... h4 {[%emt 0:00:05]} 55. Kc3 {[%emt 0:00:08]} Rf7 {[%emt 0:00:18]} 56. Ra4 {[%emt 0:00:11]} Rxf3+ {[%emt 0:00:09]} 57. Kb2 {[%emt 0:00:02]} Rf7 $2 {[%emt 0:00:48]} (57... h3 $19 {is more deadly.} 58. Rxa7 c4 59. bxc4+ Kxc4) 58. Rxh4 $17 {[%emt 0:00:09] [#]} Rb7 $1 {[%emt 0:00:02]} 59. Ra4 $2 {[%emt 0:00:25]} (59. Rh5+ $17 Ke6 60. Rh6+ Kd7 61. Rh7+ Kc8 62. Rh8+ Kc7 63. Kc2) 59... Rxb5 $19 {[%emt 0:00:03]} 60. Rxa7 $2 {[%emt 0:00:01]} (60. Kc3) 60... c4 {[%emt 0:00:03] Weighted Error Value: White=0.65/Black=0.30} 0-1